bitfinex/quotes_SOLUSD_20220212
["timestamp","ask_amount","ask_price","bid_price","bid_amount"]
[1644661161947,0.25,95.557,95.478,0.25]
[1644661162147,5.234,95.556,95.478,0.25]
[1644661162349,0.25,95.555,95.478,0.25]
[1644661162549,0.25,95.555,95.479,2.38366791]
[1644661162848,5.234,95.554,95.48,0.25]
[1644661163048,0.25,95.557,95.48,0.25]
[1644661163247,68.43889544,95.559,95.481,7.61766791]
[1644661163648,68.43889544,95.559,95.482,2.63366791]
[1644661163853,68.43889544,95.559,95.483,0.25]
[1644661164049,68.43889544,95.559,95.483,2.63366791]
[1644661164250,68.43889544,95.559,95.484,2.38366791]
[1644661164649,68.43889544,95.559,95.485,5.484]
[1644661164949,68.43889544,95.559,95.486,2.38366791]
[1644661165349,5.234,95.558,95.486,2.38366791]
[1644661165550,5.234,95.558,95.484,5.234]
[1644661165849,1.48126637,95.552,95.477,24.0577]
[1644661166051,5.234,95.551,95.477,24.0577]
[1644661166453,0.25,95.55,95.477,24.0577]
[1644661166850,1.73126637,95.555,95.478,0.25]
[1644661167550,1.48126637,95.553,95.478,0.25]
[1644661168552,1.48126637,95.554,95.478,0.25]
[1644661168750,5.234,95.554,95.478,2.63366791]
[1644661170352,1.48126637,95.551,95.478,2.63366791]
[1644661170553,1.48126637,95.552,95.478,2.63366791]
[1644661170953,5.234,95.551,95.478,2.63366791]
[1644661171354,1.48126637,95.553,95.478,2.63366791]
[1644661171955,1.48126637,95.554,95.478,2.63366791]
[1644661172155,5.234,95.553,95.478,2.63366791]
[1644661172457,5.234,95.557,95.49,15.14]
[1644661172656,22.5773,95.559,95.491,24.4663]
[1644661172855,22.5773,95.559,95.491,27.09996791]
[1644661173057,22.5773,95.559,95.492,2.38366791]
[1644661173258,22.5773,95.559,95.493,0.25]
[1644661173658,22.5773,95.559,95.494,2.38366791]
[1644661173859,0.25,95.558,95.494,7.61766791]
[1644661174058,0.25,95.558,95.495,0.25]
[1644661174260,22.5773,95.559,95.5,15.14]
[1644661174459,22.5773,95.559,95.502,38.26991136]
[1644661174660,22.5773,95.559,95.503,5.232]
[1644661174860,22.5773,95.559,95.503,5.482]
[1644661175061,22.5773,95.559,95.504,24.7099]
[1644661175260,22.5773,95.559,95.505,5.232]
[1644661175460,5.232,95.558,95.505,5.232]
[1644661175660,5.232,95.558,95.502,38.26991136]
[1644661176059,22.5773,95.559,95.502,38.26991136]
[1644661176462,5.232,95.558,95.502,38.26991136]
[1644661176964,5.232,95.558,95.481,22.7838]
[1644661177167,5.232,95.558,95.48,15.14]
[1644661177370,2.21326414,95.557,95.462,26.2030886]
[1644661177569,1.48126637,95.552,95.462,26.2030886]
[1644661177764,1.48126637,95.543,95.453,1.4779886]
[1644661177962,1.48126637,95.541,95.454,48.51879281]
[1644661178164,1.48126637,95.54,95.454,48.51879281]
[1644661178363,5.235,95.54,95.454,48.51879281]
[1644661178564,22.8587,95.539,95.454,48.51879281]
[1644661178763,5.235,95.538,95.454,48.51879281]
[1644661179164,5.235,95.538,95.455,0.25]
[1644661179565,2.21326414,95.537,95.454,48.51879281]
[1644661179763,5.235,95.536,95.454,48.51879281]
[1644661180164,22.8587,95.539,95.454,48.51879281]
[1644661180364,5.235,95.536,95.455,2.63366791]
[1644661180564,5.235,95.538,95.455,2.63366791]
[1644661180763,5.235,95.538,95.456,2.38366791]
[1644661182067,0.25,95.537,95.456,2.38366791]
[1644661182266,5.235,95.536,95.456,2.38366791]
[1644661183067,0.25,95.537,95.463,1.4779886]
[1644661183268,0.25,95.537,95.47,15.14]
[1644661183469,0.25,95.537,95.471,24.9166]
[1644661183667,0.25,95.537,95.472,5.235]
[1644661184067,0.25,95.537,95.473,0.25]
[1644661184270,0.25,95.558,95.474,5.235]
[1644661184467,0.25,95.558,95.474,7.61866791]
[1644661184670,0.25,95.558,95.475,0.25]
[1644661184867,0.25,95.558,95.475,2.63366791]
[1644661185067,1.48126637,95.571,95.476,7.61766791]
[1644661185268,43.66698769,95.57,95.477,0.25]
[1644661185468,43.66698769,95.57,95.478,5.234]
[1644661185668,43.66698769,95.57,95.478,7.61766791]
[1644661185869,5.234,95.569,95.479,0.25]
[1644661186068,5.234,95.569,95.479,2.63366791]
[1644661186270,5.234,95.569,95.48,2.38366791]
[1644661186768,5.234,95.569,95.481,0.25]
[1644661187173,5.234,95.569,95.482,2.38366791]
[1644661187369,43.66698769,95.57,95.483,48.2727356]
[1644661187572,5.234,95.569,95.483,72.9161356]
[1644661187769,5.234,95.569,95.484,2.38366791]
[1644661188469,5.234,95.569,95.485,0.25]
[1644661188672,0.25,95.568,95.485,0.25]
[1644661188971,0.25,95.568,95.486,2.38366791]
[1644661189270,0.25,95.569,95.487,0.25]
[1644661189469,0.25,95.569,95.488,5.234]
[1644661189672,0.25,95.569,95.488,7.61766791]
[1644661189870,0.25,95.569,95.489,0.25]
[1644661190072,5.234,95.568,95.489,0.25]
[1644661190472,5.234,95.569,95.489,0.25]
[1644661191172,5.234,95.569,95.49,2.38366791]
[1644661191372,24.8775,95.568,95.49,2.38366791]
[1644661191574,24.8775,95.568,95.491,0.25]
[1644661191974,24.8775,95.568,95.492,2.38366791]
[1644661192176,24.8775,95.568,95.492,7.61566791]
[1644661192375,0.25,95.567,95.492,7.61566791]
[1644661192573,5.232,95.566,95.492,2.38366791]
[1644661194178,5.232,95.566,95.5,15.14]
[1644661194380,24.3477,95.579,95.5,15.14]
[1644661194576,24.3477,95.579,95.501,31.44526791]
[1644661194978,24.3477,95.579,95.502,2.38366791]
[1644661195179,40.82417703,95.578,95.503,5.232]
[1644661195379,46.05617703,95.578,95.503,0.25]
[1644661195580,0.25,95.577,95.504,2.38366791]
[1644661195778,5.232,95.576,95.505,0.25]
[1644661196179,5.232,95.576,95.506,2.38366791]
[1644661196379,5.232,95.578,95.51,15.14]
[1644661196581,24.3477,95.579,95.51,15.14]
[1644661196779,24.3477,95.579,95.511,0.25]
[1644661196981,42.30974786,95.578,95.511,0.25]
[1644661197382,24.3477,95.579,95.511,0.25]
[1644661197579,24.3477,95.579,95.512,2.38366791]
[1644661197780,24.3477,95.579,95.513,0.25]
[1644661197980,0.25,95.578,95.513,0.25]
[1644661198179,0.25,95.578,95.514,2.38366791]
[1644661198382,0.25,95.578,95.515,41.52844546]
[1644661198680,0.25,95.578,95.52,15.14]
[1644661199080,0.25,95.578,95.521,0.25]
[1644661203115,0.25,95.578,95.52,15.14]
[1644661203316,5.232,95.577,95.52,15.14]
[1644661203916,5.232,95.578,95.52,15.14]
[1644661205218,24.3477,95.579,95.52,15.14]
[1644661205619,24.3477,95.579,95.521,0.25]
[1644661206017,0.25,95.578,95.521,0.25]
[1644661207522,0.25,95.578,95.52,15.14]
[1644661207720,5.232,95.577,95.521,0.25]
[1644661208320,5.232,95.578,95.521,0.25]
[1644661209623,24.4479,95.577,95.521,0.25]
[1644661211724,0.25,95.576,95.521,0.25]
[1644661214329,5.482,95.576,95.521,0.25]
[1644661215331,0.25,95.576,95.521,0.25]
[1644661215528,0.25,95.576,95.52,15.14]
[1644661215738,0.25,95.576,95.521,0.25]
[1644661217834,0.25,95.576,95.52,15.14]
[1644661218032,0.25,95.576,95.516,23.5147]
[1644661218232,0.25,95.576,95.52,15.14]
[1644661218638,0.25,95.576,95.521,0.25]
[1644661222265,0.25,95.576,95.517,0.25]
[1644661222463,0.25,95.576,95.52,15.14]
[1644661222764,0.25,95.576,95.521,0.25]
[1644661230075,5.482,95.576,95.521,0.25]
[1644661231175,24.4479,95.577,95.521,0.25]
[1644661231380,5.232,95.576,95.522,2.38366791]
[1644661231577,24.4479,95.577,95.522,2.38366791]
[1644661231777,24.4479,95.577,95.523,1.7279886]
[1644661232274,24.4479,95.577,95.524,2.38366791]
[1644661232676,24.4479,95.577,95.525,0.25]
[1644661233075,24.4479,95.577,95.526,2.38366791]
[1644661233278,24.4479,95.577,95.527,0.25]
[1644661233677,24.4479,95.577,95.528,2.38366791]
[1644661234077,24.4479,95.577,95.54,15.14]
[1644661234277,6.71326637,95.608,95.541,0.25]
[1644661234478,5.231,95.603,95.541,24.7394]
[1644661234677,5.231,95.606,95.541,24.7394]
[1644661234878,0.25,95.602,95.541,24.7394]
[1644661235077,5.231,95.601,95.541,24.7394]
[1644661235277,0.25,95.605,95.542,107.08366791]
[1644661235479,1.48126637,95.62,95.543,0.25]
[1644661235682,1.48126637,95.625,95.544,5.231]
[1644661235885,1.48126637,95.628,95.545,104.7]
[1644661236079,39.2478219,95.633,95.56,15.14]
[1644661236280,1.48126637,95.643,95.561,28.8839]
[1644661236481,1.48126637,95.644,95.561,28.8839]
[1644661236688,1.48126637,95.647,95.562,2.38366791]
[1644661236881,1.48126637,95.648,95.563,5.229]
[1644661237083,1.48126637,95.654,95.563,5.479]
[1644661237281,48.39925502,95.647,95.564,2.38366791]
[1644661237483,48.39925502,95.647,95.565,5.229]
[1644661237681,48.39925502,95.647,95.565,5.479]
[1644661237880,0.25,95.646,95.566,2.38366791]
[1644661238082,5.479,95.646,95.58,15.14]
[1644661238281,23.4686,95.645,95.581,39.57929189]
[1644661238485,5.229,95.644,95.581,39.57929189]
[1644661238885,5.229,95.644,95.582,23.1471]
[1644661242284,0.25,95.643,95.582,23.1471]
[1644661242483,5.229,95.642,95.582,23.1471]
[1644661243889,0.25,95.643,95.582,23.1471]
[1644661244986,23.4686,95.645,95.583,5.229]
[1644661245187,0.25,95.644,95.583,7.86266791]
[1644661245387,0.25,95.644,95.583,5.479]
[1644661245586,0.25,95.644,95.584,2.38366791]
[1644661245787,0.25,95.644,95.585,5.479]
[1644661246191,0.25,95.644,95.586,2.38366791]
[1644661246389,0.25,95.644,95.59,15.14]
[1644661246589,23.4686,95.645,95.591,5.229]
[1644661246789,23.4686,95.645,95.591,5.479]
[1644661247589,23.4686,95.645,95.592,2.38366791]
[1644661247789,23.4686,95.645,95.593,0.25]
[1644661248794,5.229,95.665,95.594,2.38366791]
[1644661248992,24.2608,95.664,95.595,22.6556]
[1644661249194,24.2608,95.664,95.595,22.9056]
[1644661249392,24.2608,95.664,95.596,2.38366791]
[1644661249592,5.228,95.663,95.6,15.14]
[1644661249793,5.228,95.663,95.601,0.25]
[1644661250194,0.25,95.656,95.601,0.25]
[1644661252199,42.71455009,95.656,95.6,15.14]
[1644661252405,5.228,95.655,95.6,15.14]
[1644661253611,42.71455009,95.656,95.6,15.14]
[1644661254410,0.25,95.656,95.6,15.14]
[1644661255419,37.56538025,95.656,95.6,15.14]
[1644661256021,5.228,95.655,95.6,15.14]
[1644661259126,5.228,95.655,95.595,22.6556]
[1644661261329,0.25,95.654,95.58,15.14]
[1644661261527,5.229,95.653,95.582,22.9433]
[1644661261728,0.25,95.654,95.582,28.1723]
[1644661262834,0.25,95.654,95.583,0.25]
[1644661263035,37.31538025,95.656,95.584,5.229]
[1644661263236,37.31538025,95.656,95.585,0.25]
[1644661263437,37.31538025,95.656,95.586,5.229]
[1644661263841,37.31538025,95.656,95.587,0.25]
[1644661264738,0.25,95.655,95.584,0.25]
[1644661264938,0.25,95.655,95.587,2.38366791]
[1644661265141,0.25,95.655,95.588,5.228]
[1644661265339,0.25,95.655,95.588,5.478]
[1644661265840,5.478,95.655,95.588,0.25]
[1644661266240,5.478,95.655,95.583,0.25]
[1644661267444,5.478,95.655,95.584,2.38366791]
[1644661267745,5.478,95.655,95.585,0.25]
[1644661268145,5.478,95.655,95.586,2.38366791]
[1644661268347,5.478,95.655,95.587,0.25]
[1644661269450,5.478,95.655,95.583,0.25]
[1644661271852,5.478,95.655,95.584,5.229]
[1644661272257,5.478,95.655,95.585,0.25]
[1644661273355,5.478,95.655,95.583,0.25]
[1644661276856,0.25,95.655,95.584,5.229]
[1644661277260,0.25,95.655,95.585,0.25]
[1644661277761,0.25,95.655,95.586,7.61266791]
[1644661277961,5.229,95.654,95.59,15.14]
[1644661278161,1.48126637,95.659,95.59,15.14]
[1644661278364,24.2608,95.664,95.591,104.95]
[1644661278562,24.2608,95.664,95.591,108.81165651]
[1644661278764,24.2608,95.664,95.592,2.38366791]
[1644661279171,24.2608,95.664,95.594,104.7]
[1644661279474,24.2608,95.664,95.595,7.61166791]
[1644661279672,24.2608,95.664,95.595,7.86166791]
[1644661279873,24.2608,95.664,95.596,2.38366791]
[1644661280072,5.228,95.663,95.6,15.14]
[1644661280475,5.228,95.663,95.601,2.38366791]
[1644661281285,5.228,95.663,95.602,0.25]
[1644661281687,0.25,95.662,95.602,0.25]
[1644661281891,5.228,95.661,95.602,0.25]
[1644661282090,0.25,95.662,95.603,5.228]
[1644661282293,0.25,95.662,95.604,22.8174]
[1644661282490,5.228,95.661,95.604,22.8174]
[1644661285295,5.228,95.661,95.604,22.79528065]
[1644661285695,5.228,95.663,95.604,22.79528065]
[1644661286094,0.25,95.662,95.604,22.79528065]
[1644661286296,5.228,95.661,95.604,22.79528065]
[1644661286499,0.25,95.662,95.604,22.79528065]
[1644661287797,24.2608,95.664,95.604,22.79528065]
[1644661287998,0.25,95.663,95.604,22.79528065]
[1644661288797,0.25,95.663,95.605,0.25]
[1644661289199,24.2608,95.664,95.606,2.38366791]
[1644661289599,24.2608,95.664,95.607,0.25]
[1644661290005,24.2608,95.664,95.608,2.38366791]
[1644661290204,24.2608,95.664,95.609,0.25]
[1644661290604,24.2608,95.664,95.611,34.34767181]
[1644661290798,24.2608,95.664,95.612,0.25]
[1644661291001,24.2608,95.664,95.612,2.63366791]
[1644661292804,0.25,95.663,95.612,2.63366791]
[1644661293203,0.25,95.663,95.613,2.38366791]
[1644661293604,5.228,95.682,95.613,2.38366791]
[1644661293803,31.56466637,95.687,95.613,2.38366791]
[1644661294003,0.25,95.681,95.62,15.14]
[1644661294203,1.48126637,95.694,95.622,104.7]
[1644661294404,1.48126637,95.705,95.622,104.7]
[1644661294605,24.8564,95.729,95.636,1.4779886]
[1644661294606,26.33766637,95.729,95.636,1.4779886]
[1644661294806,43.24784021,95.727,95.651,104.7]
[1644661295005,43.24784021,95.727,95.66,15.14]
[1644661295212,43.24784021,95.727,95.661,0.25]
[1644661295407,43.24784021,95.727,95.662,5.224]
[1644661295805,0.25,95.726,95.663,2.63366791]
[1644661296204,0.25,95.726,95.664,7.60766791]
[1644661296605,23.3755,95.74,95.665,2.63366791]
[1644661296806,23.3755,95.74,95.67,15.14]
[1644661297206,23.3755,95.74,95.671,107.33366791]
[1644661297405,23.3755,95.74,95.671,2.63366791]
[1644661297608,23.3755,95.74,95.672,2.38366791]
[1644661297805,23.3755,95.74,95.673,0.25]
[1644661298207,23.3755,95.74,95.674,2.38366791]
[1644661298407,5.224,95.739,95.674,2.38366791]
[1644661298607,5.224,95.739,95.675,0.25]
[1644661299008,5.224,95.739,95.676,2.38366791]
[1644661299306,5.224,95.739,95.677,0.25]
[1644661299508,5.224,95.739,95.68,15.14]
[1644661299707,5.224,95.739,95.681,36.24495366]
[1644661299907,5.224,95.739,95.681,38.62862157]
[1644661300310,0.25,95.738,95.681,38.62862157]
[1644661300513,5.224,95.737,95.681,38.62862157]
[1644661300712,0.25,95.736,95.681,38.62862157]
[1644661301311,0.25,95.739,95.681,38.62862157]
[1644661301511,23.089,95.739,95.681,38.62862157]
[1644661301909,22.839,95.739,95.681,36.24495366]
[1644661302711,28.063,95.739,95.681,38.62862157]
[1644661303517,5.224,95.739,95.681,38.62862157]
[1644661303811,5.224,95.765,95.682,109.924]
[1644661304010,24.7605,95.764,95.682,109.924]
[1644661304212,24.7605,95.764,95.683,2.63366791]
[1644661304412,45.46358862,95.763,95.684,5.223]
[1644661304611,45.46358862,95.763,95.684,7.60666791]
[1644661304818,45.46358862,95.763,95.685,2.63366791]
[1644661305018,45.46358862,95.763,95.69,15.14]
[1644661305219,45.46358862,95.763,95.691,5.473]
[1644661305419,45.46358862,95.763,95.691,7.85666791]
[1644661306025,0.25,95.762,95.691,7.60666791]
[1644661306220,7.67582669,95.762,95.68,2.38366791]
[1644661306422,1.48126637,95.753,95.661,5.223]
[1644661306624,2.20282669,95.761,95.642,5.224]
[1644661306625,5.224,95.752,95.642,5.224]
[1644661306821,2.20282669,95.752,95.642,5.224]
[1644661307022,1.48126637,95.751,95.643,46.15928798]
[1644661307239,5.224,95.751,95.644,5.224]
[1644661307441,23.6745,95.75,95.644,5.224]
[1644661307742,5.224,95.749,95.644,5.224]
[1644661307941,23.6745,95.75,95.644,5.224]
[1644661308142,23.6745,95.75,95.645,0.25]
[1644661308340,5.224,95.749,95.646,5.224]
[1644661308547,5.224,95.749,95.65,15.14]
[1644661308841,5.224,95.749,95.651,0.25]
[1644661310044,0.25,95.748,95.651,23.6107]
[1644661310244,5.224,95.747,95.652,5.224]
[1644661310649,5.224,95.747,95.653,0.25]
[1644661310845,0.25,95.748,95.654,5.224]
[1644661311047,5.224,95.746,95.654,5.224]
[1644661311245,5.224,95.747,95.655,0.25]
[1644661311445,23.6745,95.75,95.66,15.14]
[1644661311446,5.224,95.745,95.66,15.14]
[1644661312847,5.224,95.749,95.661,0.25]
[1644661313048,5.224,95.744,95.661,0.25]
[1644661313249,5.224,95.749,95.661,0.25]
[1644661314451,5.224,95.749,95.66,15.14]
[1644661315054,0.25,95.748,95.661,0.25]
[1644661315250,5.224,95.747,95.661,0.25]
[1644661315450,7.42682669,95.747,95.661,0.25]
[1644661315653,2.20282669,95.746,95.661,0.25]
[1644661315853,5.224,95.745,95.661,0.25]
[1644661316252,2.20282669,95.744,95.661,0.25]
[1644661316655,5.224,95.743,95.661,0.25]
[1644661316853,15.6851,95.74,95.661,0.25]
[1644661317052,5.224,95.739,95.661,0.25]
[1644661317253,23.0613,95.738,95.661,0.25]
[1644661317451,5.224,95.737,95.661,0.25]
[1644661318254,2.20282669,95.736,95.661,0.25]
[1644661318457,23.51331608,95.734,95.66,15.14]
[1644661318654,15.6866,95.73,95.66,15.14]
[1644661318854,5.224,95.729,95.66,15.14]
[1644661319155,7.42682669,95.729,95.66,15.14]
[1644661319354,2.20282669,95.728,95.66,15.14]
[1644661319655,5.224,95.727,95.64,15.14]
[1644661319855,29.179,95.727,95.644,0.25]
[1644661320055,2.20282669,95.726,95.644,0.25]
[1644661320255,5.224,95.725,95.644,0.25]
[1644661320656,5.224,95.726,95.644,0.25]
[1644661322859,1.48126637,95.724,95.64,15.14]
[1644661323061,5.224,95.723,95.644,0.25]
[1644661323262,6.70526637,95.723,95.644,0.25]
[1644661323460,1.48126637,95.723,95.644,0.25]
[1644661323663,5.224,95.722,95.64,15.14]
[1644661323860,1.48126637,95.72,95.64,15.14]
[1644661324060,0.25,95.725,95.64,15.14]
[1644661324261,0.25,95.725,95.644,22.5916]
[1644661324460,0.25,95.725,95.645,1.4779886]
[1644661324661,0.25,95.725,95.646,5.224]
[1644661325062,0.25,95.725,95.647,0.25]
[1644661325262,23.955,95.727,95.648,5.224]
[1644661325561,0.25,95.726,95.648,14.334]
[1644661325762,0.25,95.726,95.649,0.25]
[1644661325988,0.25,95.726,95.65,5.224]
[1644661326165,23.955,95.727,95.65,5.224]
[1644661326362,23.955,95.727,95.651,0.25]
[1644661326662,23.955,95.727,95.652,5.224]
[1644661326866,5.224,95.726,95.652,5.224]
[1644661327063,5.224,95.726,95.653,0.25]
[1644661327461,0.25,95.725,95.653,0.25]
[1644661327662,0.25,95.725,95.654,5.224]
[1644661328061,23.955,95.727,95.655,22.9705]
[1644661328264,0.25,95.726,95.656,5.224]
[1644661328464,0.25,95.726,95.66,15.14]
[1644661328964,0.25,95.726,95.661,0.25]
[1644661331473,5.224,95.725,95.661,5.474]
[1644661332075,5.224,95.726,95.661,0.25]
[1644661332272,23.955,95.727,95.662,5.224]
[1644661332773,23.955,95.727,95.663,0.25]
[1644661333174,23.955,95.727,95.664,5.224]
[1644661333593,23.955,95.727,95.665,0.25]
[1644661333901,23.955,95.727,95.666,5.224]
[1644661334196,0.25,95.726,95.667,0.25]
[1644661334796,0.25,95.726,95.667,24.8495]
[1644661335895,0.25,95.726,95.667,24.5995]
[1644661336500,5.224,95.725,95.668,0.25]
[1644661336896,5.224,95.726,95.668,0.25]
[1644661337098,5.224,95.726,95.667,24.5995]
[1644661337299,5.224,95.726,95.668,0.25]
[1644661337698,5.224,95.726,95.667,24.5995]
[1644661339100,23.955,95.727,95.667,24.5995]
[1644661339297,23.955,95.727,95.668,0.25]
[1644661340700,0.25,95.726,95.668,0.25]
[1644661344211,0.25,95.726,95.67,15.14]
[1644661344605,0.25,95.726,95.671,0.25]
[1644661348507,0.25,95.726,95.672,5.224]
[1644661348706,0.25,95.726,95.673,37.68985367]
[1644661348907,0.25,95.726,95.674,5.224]
[1644661349107,5.224,95.745,95.675,0.25]
[1644661349311,5.224,95.752,95.676,6.7019886]
[1644661349509,5.224,95.75,95.69,15.14]
[1644661349709,5.223,95.758,95.691,24.7614]
[1644661349908,5.223,95.749,95.691,24.5114]
[1644661350108,22.5051,95.759,95.692,5.223]
[1644661351311,5.223,95.789,95.692,5.223]
[1644661351312,1.48126637,95.783,95.692,5.223]
[1644661351509,5.223,95.786,95.692,5.223]
[1644661351708,23.3241,95.788,95.701,104.7]
[1644661351913,1.48126637,95.798,95.711,104.7]
[1644661352107,1.48126637,95.801,95.712,28.4819]
[1644661352313,39.07182661,95.797,95.713,47.07136705]
[1644661352510,22.5217,95.796,95.714,28.0736]
[1644661352708,27.7427,95.796,95.714,28.0736]
[1644661354615,27.7427,95.796,95.714,5.221]
[1644661354813,15.6773,95.79,95.713,47.07136705]
[1644661355015,5.221,95.789,95.713,47.07136705]
[1644661356216,5.221,95.789,95.69,15.14]
[1644661356415,23.1836,95.788,95.691,23.4486]
[1644661356615,5.222,95.787,95.691,23.4486]
[1644661356815,5.222,95.787,95.691,128.1486]
[1644661357217,5.222,95.787,95.693,104.7]
[1644661357417,5.222,95.795,95.694,5.222]
[1644661357619,1.48126637,95.819,95.696,1.4779886]
[1644661357818,5.222,95.812,95.711,106.1779886]
[1644661358017,47.2403,95.839,95.694,33.89503615]
[1644661358018,5.221,95.818,95.721,104.7]
[1644661358316,5.221,95.818,95.712,23.7688]
[1644661358317,5.221,95.811,95.73,15.14]
[1644661358517,47.19265719,95.816,95.73,15.14]
[1644661358717,47.19265719,95.816,95.731,37.18607133]
[1644661358917,5.22,95.815,95.731,37.18607133]
[1644661359120,23.2061,95.814,95.732,22.7061]
[1644661359317,5.22,95.813,95.732,22.7061]
[1644661359922,5.22,95.813,95.731,37.18607133]
[1644661361020,5.22,95.813,95.732,24.4974]
[1644661364826,5.22,95.813,95.71,15.14]
[1644661365026,5.22,95.813,95.711,22.9403]
[1644661365625,6.70126637,95.813,95.711,22.9403]
[1644661365825,6.70126637,95.813,95.712,41.76297575]
[1644661366026,3.68418813,95.812,95.712,41.76297575]
[1644661366228,5.221,95.811,95.712,41.76297575]
[1644661366427,7.42392176,95.811,95.712,41.76297575]
[1644661366627,6.70226637,95.811,95.712,41.76297575]
[1644661366826,17.87652176,95.81,95.712,41.76297575]
[1644661367025,5.221,95.809,95.712,41.76297575]
[1644661367247,7.42392176,95.809,95.712,41.76297575]
[1644661367427,24.7158,95.808,95.712,41.76297575]
[1644661367626,5.221,95.807,95.712,41.76297575]
[1644661368025,2.20292176,95.806,95.712,41.76297575]
[1644661368224,5.221,95.805,95.712,41.76297575]
[1644661368725,15.675,95.8,95.712,41.76297575]
[1644661368925,5.221,95.799,95.712,41.76297575]
[1644661369128,7.42392176,95.799,95.712,41.76297575]
[1644661369325,5.221,95.799,95.712,41.76297575]
[1644661370026,24.9679,95.798,95.713,23.8975]
[1644661371529,5.221,95.797,95.713,23.8975]
[1644661372629,2.20292176,95.796,95.713,23.8975]
[1644661372833,5.221,95.797,95.713,23.8975]
[1644661374232,5.221,95.797,95.714,5.221]
[1644661375533,24.9679,95.798,95.714,5.221]
[1644661375732,24.9679,95.798,95.715,2.38366791]
[1644661376031,24.9679,95.798,95.72,15.14]
[1644661376231,24.9679,95.798,95.721,5.221]
[1644661379633,5.221,95.797,95.721,5.221]
[1644661380936,24.9679,95.798,95.721,5.221]
[1644661383959,5.221,95.797,95.72,15.39]
[1644661385161,24.9679,95.798,95.72,15.39]
[1644661385364,5.221,95.797,95.72,15.39]
[1644661385560,24.9679,95.798,95.72,15.39]
[1644661386864,24.9679,95.798,95.721,5.221]
[1644661388164,5.221,95.797,95.72,15.39]
[1644661390470,5.221,95.797,95.72,120.09]
[1644661391867,24.9679,95.798,95.721,5.221]
[1644661392167,24.9679,95.798,95.722,2.38366791]
[1644661392367,5.221,95.797,95.722,2.38366791]
[1644661395973,5.221,95.797,95.723,5.221]
[1644661396576,5.221,95.797,95.724,24.0997]
[1644661397881,5.221,95.797,95.725,5.221]
[1644661402488,5.221,95.797,95.724,24.0997]
[1644661404486,1.48126637,95.796,95.724,24.0997]
[1644661404791,5.221,95.795,95.724,24.0997]
[1644661405086,6.70226637,95.795,95.725,5.221]
[1644661405285,1.48126637,95.795,95.725,5.221]
[1644661405488,5.221,95.794,95.725,5.221]
[1644661406491,6.70226637,95.794,95.725,5.221]
[1644661406690,1.48126637,95.794,95.725,5.221]
[1644661406891,5.221,95.793,95.725,5.221]
[1644661408089,1.48126637,95.794,95.725,5.221]
[1644661408990,24.9679,95.798,95.73,1.4779886]
[1644661409192,24.9679,95.798,95.731,5.221]